Cogmind - Beta 16 @@@ ROGUE MODE // 2025.10.26 @ 20:34:00 Player: AL Result: Destroyed by 8U-2UP(R) with Subdweller Laser Performance ------------- Evolutions (0) 0 Regions Visited (3) 600 Robots Destroyed (12) 60 Value Destroyed (325) 325 Prototype IDs (0) 0 Alien Tech Used (0) 0 Bonus (0) 0 TOTAL SCORE: 985 Bonus ------- None Cogmind --------- Core Integrity 0/250 Matter 216/300 Energy 100/100 System Corruption 0% Temperature Cool (6) Movement Core (200) Ox3 Location -10/Subcaves Parts ------- > --- POWER (1) -------- (None) > --- PROPULSION (2) --- (None) > --- UTILITY (2) ------ Small Storage Unit Structural Scanner > --- WEAPON (2) ------- Light Assault Rifle Rocket Launcher > --- INVENTORY (8) ---- Light Ion Engine Light Nuclear Core Scrap Suit Improved Heat Sink Terrain Scan Processor Particle Gun Peak State ------------ > --- POWER ------------ Light Ion Engine > --- PROPULSION ------- Light Treads Light Treads > --- UTILITY ---------- Improved Heat Sink Small Storage Unit > --- WEAPON ----------- Particle Gun Light Assault Rifle > --- INVENTORY -------- Light Nuclear Core [Rating: 10] Favorites ----------- Power Light Ion Engine Engine Light Ion Engine Propulsion Light Treads Treads Light Treads Wheel Wheel Utility Small Storage Unit Device Structural Scanner Storage Small Storage Unit Weapon Light Assault Rifle Energy Gun Particle Gun Ballistic Gun Light Assault Rifle Launcher Rocket Launcher Build | -11 -10 -10 -10 ------- Run | Yrd Mat Min Sub Slots Evolved . | . . . . Power . | . . . . Propulsion . | . . . . Utility . | . . . . Weapon . | . . . . Parts Attached 16 | 6 4 6 . Power 4 | 1 1 2 . Engine 4 | 1 1 2 . Core . | . . . . Reactor . | . . . . Propulsion 4 | 2 . 2 . Treads 2 | 2 . . . Leg . | . . . . Wheel 2 | . . 2 . Hover . | . . . . Flight . | . . . . Utility 3 | 1 2 . . Device 2 | . 2 . . Storage 1 | 1 . . . Processor . | . . . . Hackware . | . . . . Protection . | . . . . Artifact . | . . . . Weapon 5 | 2 1 2 . Energy Gun 2 | 1 1 . . Energy Cannon . | . . . . Ballistic Gun 2 | 1 . 1 . Ballistic Cannon . | . . . . Launcher 1 | . . 1 . Special Weapon . | . . . . Impact Weapon . | . . . . Slashing Weapon . | . . . . Piercing Weapon . | . . . . Special Melee Weapon . | . . . . Unidentified Prototypes . | . . . . Parts Lost 6 | . 1 2 3 Power 2 | . 1 . 1 Propulsion 4 | . . 2 2 Utility . | . . . . Weapon . | . . . . Highest Loss Streak 3 | . 1 1 3 To Critical Strikes . | . . . . Average Backups 3 | 1 1 4 6 Power 1 | . 1 1 2 Propulsion . | . . . . Utility 1 | . . 2 3 Weapon . | . . . 1 Tool/Special . | . . . . Unused Backups 3 | . . . 3 Power 1 | . . . 1 Propulsion . | . . . . Utility 2 | . . . 2 Weapon . | . . . . Tool/Special . | . . . . Average Slot Usage (%) 95 | . 89 97 95 Engine 12 | . 10 14 14 Treads 16 | . 28 12 . Wheel 9 | . . 13 23 Device 12 | . 7 14 14 Storage 14 | . 14 14 14 Energy Gun 12 | . 14 12 . Ballistic Gun 14 | . 14 14 14 Launcher 1 | . . 1 14 Peak Build Rating 10 | 6 10 9 9 Average Rating 7 | 3 7 8 8 On Entrance 5 | . 6 8 9 Avg Prop Armor Cover (%) 5 | . . 5 . Naked Turns . | . . . . Heaviest Build 14 | 11 13 14 14 Greatest Support 40 | 40 40 40 20 Greatest Overweight (x) 4 | . . 4 . Average Overweight (x) . | . . . . Largest Inventory Capacity 8 | 8 8 8 8 Average Capacity 7 | 6 8 8 8 Most Carried 7 | 5 3 7 7 Average Carried 3 | 1 1 5 7 Final Capacity 8 | 8 8 8 8 Final Carried 7 | 1 2 7 7 Class Distribution -------------------- 85% | Mutant 14% | Scavenger-Mutant Dominant Class ---------------- Mutant | -10/Materials Mutant | -10/Mines Mutant | -10/Subcaves Resources | -11 -10 -10 -10 ----------- Run | Yrd Mat Min Sub Matter Collected 397 | 191 109 97 . Remotely . | . . . . Salvage Created 370 | . 200 153 17 Parts 20 | . 10 10 . Haulers Intercepted . | . . . . Recyclers Shooed 3 | . 1 2 . Parts Field Recycled . | . . . . Retrieved Matter . | . . . . Parts Self-Destructed . | . . . . Prevented . | . . . . Parts Restored . | . . . . Kills | -11 -10 -10 -10 ------- Run | Yrd Mat Min Sub Combat Hostiles Destroyed 10 | . 4 5 1 Guns 9 | . 4 5 . AOE 1 | . . . 1 Classes Destroyed 5 | . 1 3 1 Builder 1 | . . 1 . Tunneler 1 | . . 1 . Swarmer 3 | . . 3 . Grunt 6 | . 4 2 . Subdweller 1 | . . . 1 Best Kill Streak 4 | . 4 3 1 Combat Bots Only 4 | . 4 3 1 Max Kills in Single Turn 2 | . 2 1 1 Gunslinging 1 | . 1 . . Exploded 1 | . . . 1 Melee . | . . . . Uniques/NPCs Destroyed . | . . . . Combat | -11 -10 -10 -10 -------- Run | Yrd Mat Min Sub Hostile Shots Fired 104 | . 32 59 13 Missed 28 | . 10 14 4 Hits 76 | . 22 45 9 Projectile 76 | . 22 45 9 Critical Strikes 1 | . 1 . . Damage Taken 979 | . 297 449 233 Core 250 | . 112 89 49 Absorbed by Shields . | . . . . Core Remaining (%) 100 | 100 . . . Volleys Fired 66 | . 18 39 9 Largest 2 | . 2 2 1 Hottest 85 | . 85 85 33 Shots Fired 112 | . 36 67 9 Gun 103 | . 36 67 . Cannon . | . . . . Launcher 9 | . . . 9 Special . | . . . . Kinetic 46 | . 18 28 . Thermal 42 | . 3 39 . Explosive 9 | . . . 9 Electromagnetic 15 | . 15 . . Robot Hit Streak 11 | . 11 9 4 Robot Miss Streak 4 | . 3 4 3 Penetration Max . | . . . . Secondary Targets 2 | . 2 . . Max Gunslinging Chain 1 | . 1 . . Shots Hit Robots 68 | . 23 40 5 Core Hits 29 | . 12 13 4 Critical Kills . | . . . . Critical Parts Destroyed . | . . . . Critical Strikes 1 | . 1 . . Corrupt 1 | . 1 . . Melee Attacks . | . . . . Impact . | . . . . Slashing . | . . . . Piercing . | . . . . Sneak Attacks . | . . . . Combat Hostiles . | . . . . Follow-up Attacks . | . . . . Damage Inflicted 1195 | . 263 524 408 Guns 778 | . 263 515 . Cannons . | . . . . Explosions 408 | . . . 408 Melee . | . . . . Ramming 9 | . . 9 . Kinetic 245 | . 101 144 . Thermal 371 | . . 371 . Explosive 408 | . . . 408 Electromagnetic 162 | . 162 . . Impact . | . . . . Slashing . | . . . . Piercing . | . . . . Highest Corruption . | . . . . Average Corruption . | . . . . Corruption Purged . | . . . . Corruption Blocked . | . . . . Overload Shots . | . . . . Overflow Damage . | . . . . Projectiles . | . . . . Explosions . | . . . . Melee . | . . . . Knockbacks . | . . . . Impact . | . . . . Kinetic . | . . . . Secondary . | . . . . Self-Inflicted Damage 39 | . . . 39 Shots 1 | . . . 1 Rammed 2 | . . 2 . Targets Rammed 2 | . . 2 . Kicked . | . . . . Crushed . | . . . . Highest Temperature 368 | . 164 368 . Average Temperature 129 | . 65 152 . Received Heat Transfer 363 | . 189 132 42 Effects 2 | . . 2 . Interference 2 | . . 2 . Siege Activations . | . . . . Martial Activations . | . . . . Shielding Activations . | . . . . Robots Disrupted . | . . . . Combat Hostiles . | . . . . Robots Corrupted . | . . . . Combat Hostiles . | . . . . Parts Fried . | . . . . Impact Corruptions . | . . . . Robots Melted . | . . . . Combat Hostiles . | . . . . Parts Melted 1 | . . 1 . Heat Transferred 888 | . . 888 . Parts Sabotaged . | . . . . Parts Stolen . | . . . . Parts Stripped . | . . . . Power Chain Reactions . | . . . . Alert | -11 -10 -10 -10 ------- Run | Yrd Mat Min Sub Maximum Alert Level . | . . . . Low Security (%) 100 | 100 100 100 . Level 1 . | . . . . Level 2 . | . . . . Level 3 . | . . . . Level 4 . | . . . . Level 5 . | . . . . High Security . | . . . . Max Security . | . . . . Peak Influence 90 | . 90 62 . Initial 3 | . . 3 . Average 20 | . 41 14 . Influence Increases 253 | . 108 145 . Destroy 0b10 Robot/C 180 | . 80 100 . Destroy 0b10 Robot/NC 10 | . . 10 . Destroy Leader 40 | . 20 20 . Successful Hack 8 | . 8 . . Lose Combat Pursuer 15 | . . 15 . Influence Decreases 253 | . 100 153 . Entered New Map 5 | . . 5 . Time Decay 238 | . 100 138 . Lost Part 10 | . . 10 . Squads Dispatched . | . . . . Investigation . | . . . . Extermination . | . . . . Reinforcement . | . . . . Assault . | . . . . Garrison . | . . . . Intercept . | . . . . Searches Triggered . | . . . . Construction Impeded . | . . . . Haulers Reinforced . | . . . . Active Scanning Responses . | . . . . Cargo Convoy Interrupts . | . . . . Stealth | -11 -10 -10 -10 --------- Run | Yrd Mat Min Sub Distress Signals 1 | . . 1 . Communications Jammed . | . . . . Distress Signals . | . . . . Times Spotted 21 | . 10 6 5 Peak Tracking Total 4 | . 4 3 3 Tactical Retreats 1 | . . 1 . Traps | -11 -10 -10 -10 ------- Run | Yrd Mat Min Sub Traps Triggered . | . . . . Indirectly . | . . . . Trap Hack Attempts . | . . . . Triggered . | . . . . Disarmed 6 | . 6 . . Reprogrammed . | . . . . Reused . | . . . . Traps Extracted . | . . . . Installed . | . . . . Triggered . | . . . . Machines | -11 -10 -10 -10 ---------- Run | Yrd Mat Min Sub Machines Disabled 1 | . 1 . . Max in Single Turn 1 | . 1 . . Machines Repaired . | . . . . Machines Dismantled . | . . . . Machines Sabotaged . | . . . . Overloaded Fab Kills . | . . . . Hacking | -11 -10 -10 -10 --------- Run | Yrd Mat Min Sub Machines Accessed 3 | . 3 . . Terminals 3 | . 3 . . Fabricators . | . . . . Repair Stations . | . . . . Recycling Units . | . . . . Scanalyzers . | . . . . Garrison Access . | . . . . Total Hacks 10 | . 10 . . Successful 6 | . 6 . . Failed 4 | . 4 . . Catastrophic . | . . . . Database Lockouts . | . . . . Manual 7 | . 7 . . Terminals 10 | . 10 . . Fabricators . | . . . . Repair Stations . | . . . . Recycling Units . | . . . . Scanalyzers . | . . . . Garrison Access . | . . . . Terminal Hacks 6 | . 6 . . Branch Access Points 1 | . 1 . . Alert Level 1 | . 1 . . Disarm Traps 1 | . 1 . . Recall Investigation 1 | . 1 . . Hauler Manifests 1 | . 1 . . Zone Layout 1 | . 1 . . Fabricator Hacks . | . . . . Repair Station Hacks . | . . . . Recycling Unit Hacks . | . . . . Scanalyzer . | . . . . Garrison Access Hacks . | . . . . Unauthorized Hacks . | . . . . Terminals . | . . . . Fabricators . | . . . . Repair Stations . | . . . . Recycling Units . | . . . . Scanalyzers . | . . . . Garrison Access . | . . . . Data Cores Recovered . | . . . . Used . | . . . . Hacking Detections 3 | . 3 . . Full Trace Events . | . . . . Feedback Events . | . . . . Feedback Blocked . | . . . . Robot Schematics Acquired . | . . . . Robots Built . | . . . . Authchips . | . . . . Time . | . . . . Total Robot Build Rating . | . . . . Part Schematics Acquired . | . . . . Parts Built . | . . . . Authchips . | . . . . Time . | . . . . Total Part Build Rating . | . . . . Part Studies Acquired . | . . . . Parts Repaired . | . . . . Time . | . . . . Parts Recycled . | . . . . Recycled Matter . | . . . . Retrieved Matter . | . . . . Retrieved Components . | . . . . Parts Scanalyzed . | . . . . Part Schematics Acquired . | . . . . Parts Damaged . | . . . . Bothacking | -11 -10 -10 -10 ------------ Run | Yrd Mat Min Sub Used RIF Installer . | . . . . Robots Hacked . | . . . . Non-combat . | . . . . Combat . | . . . . Robot Hacks Applied . | . . . . Relay Couplers Released . | . . . . Fabnet Peak Effective % . | . . . . Robots Rewired . | . . . . Allies Hacked . | . . . . Hacks Repelled . | . . . . Allies | -11 -10 -10 -10 -------- Run | Yrd Mat Min Sub Total Allies . | . . . . Largest Group . | . . . . Highest-Rated Group . | . . . . Highest-Rated Ally . | . . . . Total Orders . | . . . . Ally Attacks . | . . . . Total Damage . | . . . . Kills . | . . . . Allies Corrupted . | . . . . Allies Melted . | . . . . Intel | -11 -10 -10 -10 ------- Run | Yrd Mat Min Sub Active Infowar (turns) 723 | . 136 565 22 Structural 723 | . 136 565 22 Robot Analysis Total . | . . . . Derelict Logs Recovered 2 | . . 2 . Drone Launches . | . . . . Drone Recoveries . | . . . . Exploration | -11 -10 -10 -10 ------------- Run | Yrd Mat Min Sub Turns Passed 1016 | 85 269 640 22 Spaces Moved 544 | 49 112 378 5 Core 12 | 5 . 7 . Treads 377 | 44 112 221 . Legs . | . . . . Wheels 155 | . . 150 5 Hover . | . . . . Flight . | . . . . Fastest Speed 50 | 50 160 80 80 Average Speed 137 | 148 160 129 80 Slowest Speed 250 | 160 160 250 80 Overloaded Moves . | . . . . Propulsion Burnouts . | . . . . Robots Hopped . | . . . . Potential Cave-ins . | . . . . Cave-ins Triggered . | . . . . Exploration Rate (%) 27 | 6 35 65 2 Regions Visited 3 Branch Regions 2 Pre-discovered Areas 3 | . . 3 . Known Exits Taken 1 | . 1 . . Unknown Exits Taken 2 | 1 . 1 . Scrap Searched . | . . . . Spaces Dug . | . . . . Terrain Destroyed 78 | . . . 78 Melee . | . . . . Projectile . | . . . . AOE 78 | . . . 78 Terrain Rammed . | . . . . Walls Destroyed . | . . . . Machines Disabled . | . . . . Actions | -11 -10 -10 -10 --------- Run | Yrd Mat Min Sub Total 707 | 61 169 463 14 Wait 58 | . 31 27 . Move 541 | 48 111 377 5 Hop . | . . . . Pick Up 20 | 7 4 9 . Fast Attach . | . . . . Attach 10 | 6 2 2 . Detach . | . . . . Swap 6 | . 2 4 . Drop 4 | . 1 3 . Fire 66 | . 18 39 9 Melee . | . . . . Ram . | . . . . Kick . | . . . . Crush 2 | . . 2 . Escape Stasis . | . . . . Rewire . | . . . . Trap . | . . . . Miscellaneous . | . . . . Route ------- -11/Scrapyard -10/Materials (discovered 2 exits: *Min x2) -10/Mines -10/Subcaves History --------- Turn | Location | Event 8 | -11/Scrapyard | Discovered new exit (range 15) 86 | -11/Scrapyard | Entered Materials 224 | -10/Materials | Identified exit to Mines 316 | -10/Materials | Build established: Mutant 355 | -10/Materials | Entered Mines 381 | -10/Mines | Met a Derelict bent on vengeance 402 | -10/Mines | Core integrity fell below 50% 499 | -10/Mines | Learned location of Storage (-7) 506 | -10/Mines | Discovered new exit (range 9) 615 | -10/Mines | Learned location of Zion (-7) 663 | -10/Mines | Found a Scrap Suit stashed away for nefarious purposes 666 | -10/Mines | Found Scrap Suit 833 | -10/Mines | Core integrity fell below 20% 905 | -10/Mines | Received a Rocket Launcher from a helpful Derelict 995 | -10/Mines | Entered Subcaves 996 | -10/Subcaves | Approached by a straggling Scientist 1013 | -10/Subcaves | Ambushed by Subdweller buried in earth 1015 | -10/Subcaves | Ambushed by Subdweller buried in earth 1017 | -10/Subcaves | Destroyed by 8U-2UP(R) with Subdweller Laser Last Messages --------------- 00977_ Acquired 24 matter. LOCATION=UNKNOWN AMBIENT_HEAT=-10 GOAL=ESCAPE 00996_ 0C-5LH(c): "Thank the algorithms! I was beginning to lose hope I'd never make it past all the Subs lurking out here." 00999_ 0C-5LH(c): "Hey, let me tag along and I can get us both out of this nasty situation. At least I think I can... The group I got separated from was talking about a shortcut back to the UFD." [Achievement: Do Not Disturb] 01004_ I8-11O(R): "NOSTUCKSUB!" 01005_ AC-FN3(R) destroyed. 01007_ The unstable cave ceiling collapses. 01007_ Wheel destroyed. 01008_ The unstable cave ceiling collapses. 01014_ 2J-520(R): "ARGHSUB!" 01014_ Lgt. Ion Engine destroyed. 01014_ Wheel destroyed. 01016_ 4O-NDG(R): "ARGHSUB!" 01017_ The unstable cave ceiling collapses. Map ----- +----------------------------------------------------+ | | | | | | | | | | | ?????????????????????????????????????????????????? | | ?????????????????????????????????????????????????? | | ?????????????????????????????????????????????????? | | ?????????????????????????????????????????????????? | | ?????????????????????????????????????????????????? | | ?????????????????????????????????????????????????? | | ?????????????????????????????????????????????????? | | ?????????????????????????????????????????????????? | | ?????????????????????????????????????????????????? | | ??????????????###????????????????????????????????? | | ??????????????#####??????????????????????????????? | | ?????????????### # #?????????????????????????????? | | ????????????####R #?????????????????????????????? | | ???????????#### ??????????#####??????????????? | | ???????????# # ?###????#######?????????????? | | ??????????###R ######## ###?????????????? | | ??????????## # ###### ##?????????????? | | ??????????### R # # ###?????????????? | | ???????????## & # ###??????????????? | | ???????????### ##???????????????? | | ??????????### # @ ## # ???????????????? | | ??????????## #### ?????????????? | | ?????????? # ## ##### ##???????? | | ???????????????##### #####??### ###??????? | | ????????????????### ????????## ##??????? | | ????????????????## ????????????? ### ##?????? | | ???????????????? ?????????????? ########?????? | | ???????????? ??????????????????#### ?????? | | ????????????## ###R ?????????????????????????????? | | ????????????########?????????????????????????????? | | ????????????###?####?????????????????????????????? | | ?????????????????????????????????????????????????? | | ?????????????????????????????????????????????????? | | ?????????????????????????????????????????????????? | | ?????????????????????????????????????????????????? | | ?????????????????????????????????????????????????? | | ?????????????????????????????????????????????????? | | ?????????????????????????????????????????????????? | | ?????????????????????????????????????????????????? | | ?????????????????????????????????????????????????? | | ?????????????????????????????????????????????????? | | ?????????????????????????????????????????????????? | | ?????????????????????????????????????????????????? | | ?????????????????????????????????????????????????? | | ?????????????????????????????????????????????????? | +----------------------------------------------------+ Best States ------------- Heat Dissipation 39 Energy Generation 10 Energy Capacity 125 Matter Stores 300 Matter Capacity 300 Sight Range 16 Terrain Scan Density 10 Evasion (%) 44 Recoil Reduction 2 Item Schematics ----------------- None Robot Schematics ------------------ None Fabricated ------------ Nothing Repaired ---------- Nothing Studied --------- None Alien Tech Used ----------------- None Achievements -------------- Do Not Disturb Challenges ------------ None Game ------ Seed RiotPointyBlaster Manual? 0 Play Time 00:13:15 Cumulative 7.4 hours Start 2025.10.26 @ 20:19:13 End 2025.10.26 @ 20:34:00 Sessions 1 Manual Loads 0 Difficulty Rogue Special Mode None Game No. 12 Rogue 12 Adventurer 0 Explorer 0 Win Type - Total 0 Types 0/0/0/0/0/0/0/0/0/0 Lore% 2 Gallery% 12 Achievement% 10 Wizard Run 0 Options --------- Layout 0 ASCII 0 Keyboard 0 Movement Mouse Keybinds 0 Fullscreen 1 Font 24/Smallcaps Map View 38x25 Zoom Use 99% Tactical HUD 1 Map Filters NONE Filters NONE Steam 1 RUN: a361b29d-1517-4000-9bda-94d70c164f25